fUST/lending_fUST_20240505
["ID","MTS","AMOUNT","RATE_DAILY","PERIOD"]
[325428456,1714872632549,-161.442647,0.00019243,2]
[325428458,1714872632558,-9507.74504701,0.0002,2]
[325428483,1714872638894,-994.02428363,0.0002,2]
[325428490,1714872641835,-250.0,0.0002,2]
[325428530,1714872647359,-316.5,0.0002,2]
[325428534,1714872686281,1314.25442234,0.0001,2]
[325428536,1714873013110,512.03039536,9.999e-05,2]
[325428537,1714873144305,-150.0,0.000189,2]
[325428538,1714873144326,-100.0,0.0001917,2]
[325428539,1714873190600,-250.0,0.00019177,2]
[325428540,1714873250401,-250.0,0.00019177,2]
[325428650,1714873838533,-5062.35304254,0.00018837,2]
[325428660,1714873842667,-496.36527315,0.00018837,2]
[325429399,1714873906092,250.0,0.00018749,2]
[325429400,1714873908153,512.03039536,9.999e-05,2]
[325429402,1714873981650,2103.12155767,0.00015,2]
[325429403,1714873989587,150.0,0.0002666,120]
[325429404,1714874086774,4071.88339165,0.00024,60]
[325429427,1714874578777,512.03039536,9.999e-05,2]
[325429430,1714874619500,-250.0,0.00017962,2]
[325429431,1714874716202,1077.54507874,9.999e-05,2]
[325429480,1714875032938,-1881.44054013,0.00017608,2]
[325429482,1714875032947,-2851.10072684,0.00017609,2]
[325429484,1714875032957,-24900.0,0.00017609,2]
[325429486,1714875032966,-218.07677255,0.00018648,2]
[325429488,1714875032975,-59270.6977398,0.00018748,2]
[325429489,1714875032984,-218.07677255,0.00019078,2]
[325429490,1714875032994,-647.57630473,0.00019116,2]
[325429491,1714875033003,-818.68,0.00019168,3]
[325429492,1714875033013,-185.92909655,0.00019176,2]
[325429494,1714875033023,-703.26050924,0.00019176,2]
[325429496,1714875033032,-512.070275,0.00019177,2]
[325429497,1714875033041,-160.59228633,0.00019177,2]
[325429499,1714875033050,-500.0,0.00019178,2]
[325429501,1714875033059,-500.0,0.00019178,2]
[325429503,1714875033068,-500.0,0.00019178,2]
[325429504,1714875033077,-500.0,0.00019178,2]
[325429505,1714875033087,-500.0,0.00019178,2]
[325429506,1714875033096,-500.0,0.00019178,2]
[325429507,1714875033105,-500.0,0.00019178,2]
[325429508,1714875033114,-500.0,0.00019178,2]
[325429509,1714875033123,-500.0,0.00019178,2]
[325429510,1714875033133,-500.0,0.00019178,2]
[325429511,1714875033142,-572.29029695,0.00019178,2]
[325429512,1714875033151,-500.0,0.00019178,2]
[325429513,1714875033161,-500.0,0.00019178,2]
[325429514,1714875033170,-351.76301643,0.00019178,2]
[325429515,1714875033180,-500.0,0.00019178,2]
[325429516,1714875033189,-500.0,0.00019178,2]
[325429517,1714875033200,-500.0,0.00019178,2]
[325429518,1714875033217,-500.0,0.00019178,2]
[325429519,1714875033227,-500.0,0.00019178,2]
[325429520,1714875033237,-500.0,0.00019178,2]
[325429521,1714875033248,-500.0,0.00019178,2]
[325429522,1714875033258,-500.0,0.00019178,2]
[325429523,1714875033268,-616.53426671,0.00019178,2]
[325429524,1714875033277,-500.0,0.00019178,2]
[325429526,1714875033286,-500.0,0.00019178,2]
[325429527,1714875033295,-500.0,0.00019178,2]
[325429528,1714875033306,-500.0,0.00019178,2]
[325429529,1714875033319,-500.0,0.00019178,2]
[325429530,1714875033327,-500.0,0.00019178,2]
[325429531,1714875033337,-500.0,0.00019178,2]
[325429532,1714875033345,-500.0,0.00019178,2]
[325429533,1714875033357,-500.0,0.00019178,2]
[325429534,1714875033366,-500.0,0.00019178,2]
[325429535,1714875033376,-307.39641742,0.00019178,2]
[325429536,1714875033386,-500.0,0.00019178,2]
[325429537,1714875033396,-500.0,0.00019178,2]
[325429538,1714875033406,-500.0,0.00019178,2]
[325429539,1714875033417,-500.0,0.00019178,2]
[325429540,1714875033426,-500.0,0.00019178,2]
[325429541,1714875033437,-500.0,0.00019178,2]
[325429542,1714875033445,-500.0,0.00019178,2]
[325429543,1714875033456,-500.0,0.00019178,2]
[325429544,1714875033465,-500.0,0.00019178,2]
[325429545,1714875033475,-500.0,0.00019178,2]
[325429546,1714875033486,-500.0,0.00019178,2]
[325429547,1714875033496,-500.0,0.00019178,2]
[325429548,1714875033506,-500.0,0.00019178,2]
[325429549,1714875033517,-500.0,0.00019178,2]
[325429550,1714875033526,-500.0,0.00019178,2]
[325429551,1714875033537,-500.0,0.00019178,2]
[325429552,1714875033549,-500.0,0.00019178,2]
[325429553,1714875033558,-500.0,0.00019178,2]
[325429554,1714875033568,-500.0,0.00019178,2]
[325429555,1714875033581,-500.0,0.00019178,2]
[325429556,1714875033590,-500.0,0.00019178,2]
[325429557,1714875033600,-500.0,0.00019178,2]
[325429558,1714875033610,-500.0,0.00019178,2]
[325429559,1714875033621,-258.36696438,0.00019178,2]
[325429560,1714875033630,-500.0,0.00019178,2]
[325429561,1714875033640,-500.0,0.00019178,2]
[325429562,1714875033650,-500.0,0.00019178,2]
[325429563,1714875033660,-276.31902613,0.00019178,2]
[325429564,1714875033669,-500.0,0.00019178,2]
[325429565,1714875033679,-500.0,0.00019178,2]
[325429566,1714875033688,-500.0,0.00019178,2]
[325429567,1714875033699,-336.35107272,0.00019178,2]
[325429568,1714875033707,-500.0,0.00019178,2]
[325429569,1714875033717,-500.0,0.00019178,2]
[325429570,1714875033726,-500.0,0.00019178,2]
[325429571,1714875033736,-431.77304858,0.00019178,2]
[325429572,1714875033747,-448.22813351,0.00019178,2]
[325429573,1714875033756,-346.47906079,0.00019178,2]
[325429574,1714875033765,-361.59492025,0.00019178,2]
[325429575,1714875033774,-346.86699552,0.00019178,2]
[325429576,1714875033783,-151.0,0.00019178,2]
[325429577,1714875033792,-151.0,0.00019178,2]
[325429578,1714875033917,-151.0,0.00019178,2]
[325429579,1714875033927,-151.0,0.00019178,2]
[325429580,1714875033936,-151.0,0.00019178,2]
[325429581,1714875033946,-151.0,0.00019178,2]
[325429582,1714875033955,-151.0,0.00019178,2]
[325429583,1714875033965,-151.0,0.00019178,2]
[325429584,1714875033974,-151.0,0.00019178,2]
[325429585,1714875033984,-151.0,0.00019178,2]
[325429586,1714875033993,-151.0,0.00019178,2]
[325429587,1714875034003,-151.0,0.00019178,2]
[325429588,1714875034012,-151.0,0.00019178,2]
[325429589,1714875034022,-177.187601,0.00019178,2]
[325429590,1714875034031,-151.0,0.00019178,2]
[325429591,1714875034041,-151.0,0.00019178,2]
[325429592,1714875034051,-151.0,0.00019178,2]
[325429593,1714875034061,-151.0,0.00019178,2]
[325429594,1714875034071,-151.0,0.00019178,2]
[325429595,1714875034080,-155.650979,0.00019178,2]
[325429596,1714875034089,-162.623681,0.00019178,2]
[325429597,1714875034098,-151.0,0.00019178,2]
[325429598,1714875034108,-186.222672,0.00019178,2]
[325429599,1714875034118,-151.0,0.00019178,2]
[325429600,1714875034130,-151.0,0.00019178,2]
[325429601,1714875034139,-151.0,0.00019178,2]
[325429602,1714875034150,-151.0,0.00019178,2]
[325429603,1714875034159,-151.0,0.00019178,2]
[325429604,1714875034168,-151.0,0.00019178,2]
[325429605,1714875034178,-151.0,0.00019178,2]
[325429606,1714875034188,-151.0,0.00019178,2]
[325429607,1714875034197,-151.0,0.00019178,2]
[325429608,1714875034207,-151.0,0.00019178,2]
[325429609,1714875034216,-151.0,0.00019178,2]
[325429610,1714875034226,-204.852931,0.00019178,2]
[325429611,1714875034235,-631.916541,0.00019178,2]
[325429612,1714875034245,-631.916541,0.00019178,2]
[325429613,1714875034254,-631.916541,0.00019178,2]
[325429614,1714875034263,-631.916541,0.00019178,2]
[325429615,1714875034273,-631.916541,0.00019178,2]
[325429616,1714875034283,-631.916541,0.00019178,2]
[325429617,1714875034292,-631.916541,0.00019178,2]
[325429618,1714875034302,-631.916541,0.00019178,2]
[325429619,1714875034316,-631.916541,0.00019178,2]
[325429620,1714875034326,-631.916541,0.00019178,2]
[325429621,1714875034335,-631.916541,0.00019178,2]
[325429622,1714875034346,-631.916541,0.00019178,2]
[325429623,1714875034355,-631.916541,0.00019178,2]
[325429624,1714875034364,-631.916541,0.00019178,2]
[325429625,1714875034374,-631.916541,0.00019178,2]
[325429626,1714875034385,-631.916541,0.00019178,2]
[325429627,1714875034394,-631.916541,0.00019178,2]
[325429628,1714875034403,-631.916541,0.00019178,2]
[325429629,1714875034413,-631.916541,0.00019178,2]
[325429630,1714875034422,-631.916535,0.00019178,2]
[325429631,1714875034432,-265.050996,0.00019178,2]
[325429632,1714875034441,-265.050996,0.00019178,2]
[325429633,1714875034450,-265.050996,0.00019178,2]
[325429634,1714875034460,-265.050996,0.00019178,2]
[325429635,1714875034469,-265.050996,0.00019178,2]
[325429636,1714875034479,-265.050996,0.00019178,2]
[325429637,1714875034488,-265.050996,0.00019178,2]
[325429638,1714875034498,-265.050996,0.00019178,2]
[325429639,1714875034507,-265.050996,0.00019178,2]
[325429640,1714875034517,-265.050996,0.00019178,2]
[325429641,1714875034526,-265.050996,0.00019178,2]
[325429642,1714875034535,-265.050996,0.00019178,2]
[325429643,1714875034545,-265.050996,0.00019178,2]
[325429644,1714875034554,-265.050996,0.00019178,2]
[325429645,1714875034563,-265.050996,0.00019178,2]
[325429646,1714875034572,-265.050996,0.00019178,2]
[325429647,1714875034581,-265.050996,0.00019178,2]
[325429648,1714875034590,-265.050996,0.00019178,2]
[325429649,1714875034599,-265.050996,0.00019178,2]
[325429650,1714875034609,-265.051004,0.00019178,2]
[325429651,1714875034618,-153.837345,0.00019178,2]
[325429652,1714875034627,-589.674273,0.00019178,2]
[325429653,1714875034636,-589.674273,0.00019178,2]
[325429654,1714875034645,-589.674273,0.00019178,2]
[325429655,1714875034654,-589.674273,0.00019178,2]
[325429656,1714875034663,-589.674273,0.00019178,2]
[325429657,1714875034672,-589.674273,0.00019178,2]
[325429658,1714875034681,-589.674273,0.00019178,2]
[325429659,1714875034690,-589.674273,0.00019178,2]
[325429660,1714875034700,-589.674273,0.00019178,2]
[325429661,1714875034709,-589.674273,0.00019178,2]
[325429662,1714875034718,-589.674273,0.00019178,2]
[325429663,1714875034727,-589.674273,0.00019178,2]
[325429664,1714875034736,-589.674273,0.00019178,2]
[325429665,1714875034745,-589.674273,0.00019178,2]
[325429666,1714875034754,-589.674273,0.00019178,2]
[325429667,1714875034763,-589.674273,0.00019178,2]
[325429668,1714875034772,-589.674273,0.00019178,2]
[325429669,1714875034782,-589.674273,0.00019178,2]
[325429670,1714875034791,-589.674273,0.00019178,2]
[325429671,1714875034800,-589.67426967,0.00019178,2]
[325429672,1714875034809,-443.750235,0.00019178,2]
[325429673,1714875034818,-443.750235,0.00019178,2]
[325429674,1714875034827,-443.750235,0.00019178,2]
[325429675,1714875034837,-443.750235,0.00019178,2]
[325429676,1714875034846,-443.750235,0.00019178,2]
[325429677,1714875034855,-443.750235,0.00019178,2]
[325429678,1714875034865,-443.750235,0.00019178,2]
[325429679,1714875034874,-443.750235,0.00019178,2]
[325429680,1714875034885,-443.750235,0.00019178,2]
[325429681,1714875034894,-443.750235,0.00019178,2]
[325429682,1714875034903,-443.750235,0.00019178,2]
[325429683,1714875034912,-443.750235,0.00019178,2]
[325429684,1714875034921,-1241.095711,0.00019178,2]
[325429685,1714875034931,-443.750235,0.00019178,2]
[325429686,1714875034940,-1241.095711,0.00019178,2]
[325429687,1714875034950,-443.750235,0.00019178,2]
[325429688,1714875034959,-1241.095711,0.00019178,2]
[325429689,1714875034968,-443.750235,0.00019178,2]
[325429690,1714875034978,-1241.095711,0.00019178,2]
[325429691,1714875034988,-443.750235,0.00019178,2]
[325429692,1714875034997,-1241.095711,0.00019178,2]
[325429693,1714875035006,-443.750235,0.00019178,2]
[325429694,1714875035016,-1241.095711,0.00019178,2]
[325429695,1714875035026,-443.750235,0.00019178,2]
[325429696,1714875035036,-1241.095711,0.00019178,2]
[325429697,1714875035045,-443.750235,0.00019178,2]
[325429698,1714875035055,-1241.095711,0.00019178,2]
[325429699,1714875035065,-443.750233,0.00019178,2]
[325429700,1714875035075,-1241.095711,0.00019178,2]
[325429701,1714875035084,-1241.095711,0.00019178,2]
[325429702,1714875035094,-1241.095711,0.00019178,2]
[325429703,1714875035104,-1241.095711,0.00019178,2]
[325429704,1714875035113,-1241.095711,0.00019178,2]
[325429705,1714875035123,-1241.095711,0.00019178,2]
[325429706,1714875035134,-1241.095711,0.00019178,2]
[325429707,1714875035144,-1241.095711,0.00019178,2]
[325429708,1714875035154,-1241.095711,0.00019178,2]
[325429709,1714875035163,-1241.095711,0.00019178,2]
[325429710,1714875035172,-1241.095711,0.00019178,2]
[325429711,1714875035183,-1241.095712,0.00019178,2]
[325429712,1714875035192,-151.0,0.00019178,2]
[325429713,1714875035202,-151.0,0.00019178,2]
[325429714,1714875035212,-151.0,0.00019178,2]
[325429715,1714875035221,-151.0,0.00019178,2]
[325429716,1714875035231,-151.0,0.00019178,2]
[325429717,1714875035240,-151.0,0.00019178,2]
[325429718,1714875035250,-151.0,0.00019178,2]
[325429719,1714875035259,-151.0,0.00019178,2]
[325429720,1714875035269,-151.0,0.00019178,2]
[325429721,1714875035279,-261.389535,0.00019178,2]
[325429722,1714875035288,-151.0,0.00019178,2]
[325429723,1714875035298,-151.0,0.00019178,2]
[325429724,1714875035310,-151.0,0.00019178,2]
[325429725,1714875035320,-151.0,0.00019178,2]
[325429726,1714875035330,-151.0,0.00019178,2]
[325429727,1714875035340,-151.0,0.00019178,2]
[325429728,1714875035350,-151.0,0.00019178,2]
[325429729,1714875035360,-151.0,0.00019178,2]
[325429730,1714875035370,-151.0,0.00019178,2]
[325429731,1714875035380,-219.34744,0.00019178,2]
[325429732,1714875035389,-219.34744,0.00019178,2]
[325429733,1714875035399,-151.0,0.00019178,2]
[325429734,1714875035408,-219.34744,0.00019178,2]
[325429735,1714875035418,-151.0,0.00019178,2]
[325429736,1714875035427,-219.34744,0.00019178,2]
[325429737,1714875035437,-151.0,0.00019178,2]
[325429738,1714875035446,-219.34744,0.00019178,2]
[325429739,1714875035456,-151.0,0.00019178,2]
[325429740,1714875035466,-219.34744,0.00019178,2]
[325429741,1714875035475,-151.0,0.00019178,2]
[325429742,1714875035486,-219.34744,0.00019178,2]
[325429743,1714875035496,-219.34744,0.00019178,2]
[325429744,1714875035505,-151.0,0.00019178,2]
[325429745,1714875035515,-219.34744,0.00019178,2]
[325429746,1714875035525,-151.0,0.00019178,2]
[325429747,1714875035534,-219.34744,0.00019178,2]
[325429748,1714875035544,-151.0,0.00019178,2]
[325429749,1714875035554,-219.34744,0.00019178,2]
[325429750,1714875035563,-219.34744,0.00019178,2]
[325429751,1714875035573,-189.450243,0.00019178,2]
[325429752,1714875035582,-219.34744,0.00019178,2]
[325429753,1714875035593,-219.34744,0.00019178,2]
[325429754,1714875035603,-219.34744,0.00019178,2]
[325429755,1714875035612,-219.34744,0.00019178,2]
[325429756,1714875035622,-219.34744,0.00019178,2]
[325429757,1714875035633,-219.34744,0.00019178,2]
[325429758,1714875035643,-219.34744,0.00019178,2]
[325429759,1714875035652,-219.347439,0.00019178,2]
[325429760,1714875035662,-162.227867,0.00019178,2]
[325429761,1714875035671,-162.7625717,0.00019178,2]
[325429762,1714875035681,-169.988279,0.00019178,2]
[325429763,1714875035690,-207.0,0.00019926,3]
[325429764,1714875035700,-150.0,0.00019932,3]
[325429765,1714875035710,-1887.0,0.0001999,2]
[325429766,1714875035720,-160.60897055,0.00019999,2]
[325429767,1714875035729,-491.78116618,0.00019999,2]
[325429768,1714875035739,-19097.39189507,0.00019999,2]
[325429769,1714875035748,-4845.69850772,0.0002,2]
[325429846,1714875044175,-4262.10447152,0.0002,2]
[325429852,1714875145805,154.54148982,0.00017862,7]
[325429854,1714875779123,930.42172217,9.999e-05,2]
[325429855,1714876042826,409.6003669,9.999e-05,2]
[325429877,1714876232909,-930.42172217,0.00017563,2]
[325429884,1714876233007,-157.54689482,0.00017564,2]
[325429885,1714876233041,-338.59671044,0.00017664,2]
[325429886,1714876233050,-59270.6977398,0.00017759,2]
[325429887,1714876233059,-20214.28776533,0.0001776,2]
[325429888,1714876233068,-24900.0,0.00017766,2]
[325429889,1714876233078,-1105.76117145,0.00017862,2]
[325429890,1714876233087,-338.5967104,0.00018223,2]
[325429891,1714876233096,-338.5967104,0.00018782,2]
[325429892,1714876233106,-150.0,0.000189,2]
[325429893,1714876233115,-341.36558855,0.00019178,2]
[325429894,1714876233124,-500.0,0.00019178,2]
[325429895,1714876233133,-316.86255738,0.00019178,2]
[325429896,1714876233142,-290.72602964,0.00019178,2]
[325429897,1714876233151,-500.0,0.00019178,2]
[325429898,1714876233160,-430.73964174,0.00019178,2]
[325429899,1714876233170,-500.0,0.00019178,2]
[325429900,1714876233180,-161.442647,0.00019178,2]
[325429901,1714876233190,-338.5967104,0.00019341,2]
[325429902,1714876233200,-150.0,0.00019863,3]
[325429903,1714876233209,-230.5,0.00019863,3]
[325429904,1714876233218,-500.0,0.00019898,2]
[325429905,1714876233227,-550.90532182,0.00019898,2]
[325429906,1714876233236,-529.53191458,0.00019898,2]
[325429907,1714876233245,-332.70815405,0.00019898,2]
[325429908,1714876233254,-338.5967104,0.000199,2]
[325429909,1714876233263,-154.95395268,0.00019998,2]
[325429910,1714876233272,-1133.83427297,0.00019998,2]
[325429911,1714876233282,-1060.81899405,0.00019998,2]
[325429912,1714876233291,-154.7700261,0.00019998,2]
[325429913,1714876233300,-410.67762035,0.00019998,2]
[325429914,1714876233310,-2761.50401243,0.00019998,2]
[325429915,1714876233319,-1635.40779001,0.00019999,2]
[325429916,1714876233328,-1085.9316263,0.00019999,2]
[325429917,1714876233337,-1425.55036343,0.0002,2]
[325429918,1714876233347,-5892.92769012,0.0002,2]
[325429919,1714876233356,-643.85979586,0.0002,2]
[325429920,1714876233366,-100256.35257418,0.0002,2]
[325429921,1714876233376,-6198.94980168,0.0002,2]
[325429987,1714876247079,-930.42172217,0.00019999,2]
[325429989,1714876247090,-1450.75250603,0.0002,2]
[325429990,1714876255932,929.47917741,0.00014,2]
[325429991,1714876895810,930.42172217,9.999e-05,2]
[325429992,1714876955174,521.62280651,9.999e-05,2]
[325430010,1714877432672,-930.42172217,0.00017638,2]
[325430011,1714877432682,-337.7064729,0.00017639,2]
[325430012,1714877432693,-40480.02795251,0.00018496,2]
[325430100,1714878640611,-2945.86030967,0.00017466,2]
[325431140,1714878859566,250.0,0.00016868,2]
[325431142,1714879200553,24900.0,0.00016644,2]
[325431170,1714879833772,-20214.28776533,0.00017364,2]
[325431171,1714879833782,-52293.84089536,0.00017365,2]
[325431172,1714879833791,-160.60897055,0.00017465,2]
[325431173,1714879833802,-491.78116618,0.00017999,2]
[325431174,1714879833811,-70172.80698166,0.00018,2]
[325431175,1714879833821,-621.37881524,0.00018115,2]
[325431176,1714879833831,-59270.6977398,0.00018439,2]
[325431177,1714879833840,-2223.90531019,0.000188,2]
[325431178,1714879833970,-150.0,0.000189,2]
[325431179,1714879833980,-366.78227339,0.00018998,2]
[325431180,1714879833990,-155.1791377,0.00019,2]
[325431181,1714879834000,-620.06894076,0.0001902,2]
[325431182,1714879834010,-236.10228078,0.00019178,2]
[325431183,1714879834021,-441.22796339,0.00019178,2]
[325431184,1714879834031,-500.0,0.00019178,2]
[325431185,1714879834040,-500.0,0.00019178,2]
[325431186,1714879834050,-500.0,0.00019178,2]
[325431187,1714879834061,-500.0,0.00019178,2]
[325431188,1714879834070,-500.0,0.00019178,2]
[325431189,1714879834079,-161.442647,0.00019178,2]
[325431190,1714879834089,-162.7625717,0.00019178,2]
[325431191,1714879834098,-2223.90531014,0.00019231,2]
[325431192,1714879834108,-2223.90531014,0.00019662,2]
[325431193,1714879834119,-680.99221428,0.000198,2]
[325431194,1714879834129,-228.5,0.0001985,3]
[325431195,1714879834138,-175394.84368582,0.000199,2]
[325431407,1714881032405,-1085.9316263,0.00017364,2]
[325431408,1714881032414,-333.9188812,0.000189,2]
[325431409,1714881032423,-24900.0,0.00018917,2]
[325431410,1714881032432,-209.5,0.00019846,3]
[325431411,1714881032442,-16758.42950674,0.00019898,2]
[325431412,1714881032451,-1635.40779001,0.00019898,2]
[325431413,1714881032460,-154.95395268,0.00019898,2]
[325431414,1714881032469,-1133.83427297,0.00019898,2]
[325431415,1714881032478,-1060.81899405,0.00019898,2]
[325431416,1714881032487,-154.7700261,0.00019898,2]
[325431417,1714881032496,-410.67762035,0.00019898,2]
[325431418,1714881032505,-2761.50401243,0.00019898,2]
[325431419,1714881032514,-500.0,0.00019899,2]
[325431420,1714881032523,-500.0,0.00019899,2]
[325431421,1714881032532,-500.0,0.00019899,2]
[325431422,1714881032541,-214.52662686,0.00019899,2]
[325431423,1714881032550,-500.0,0.00019899,2]
[325431424,1714881032559,-500.0,0.00019899,2]
[325431425,1714881032568,-99198.96536996,0.000199,2]
[325431426,1714881032577,-204.0615346,0.000199,2]
[325431427,1714881032586,-594.0,0.000199,2]
[325431428,1714881032595,-620.00344704,0.00019971,2]
[325431429,1714881032604,-72350.29769229,0.0002,2]
[325431430,1714881032613,-5465.83337635,0.0002,2]
[325431431,1714881032623,-67487.24026998,0.0002,2]
[325431432,1714881032631,-151.0,0.0002,2]
[325431433,1714881032642,-28275.69016989,0.0002,2]
[325431434,1714881032654,-14733.36984398,0.0002,2]
[325431435,1714881032665,-643.85979586,0.0002,2]
[325431436,1714881032675,-100256.35257418,0.0002,2]
[325431437,1714881032685,-169.988279,0.0002,2]
[325431438,1714881032698,-520.964588,0.0002,2]
[325431439,1714881032708,-520.964588,0.0002,2]
[325431440,1714881032718,-520.964588,0.0002,2]
[325431441,1714881032727,-520.964588,0.0002,2]
[325431442,1714881032737,-495.03,0.00020063,2]
[325431443,1714881032746,-150.331,0.00020063,2]
[325431444,1714881032755,-209.5,0.00020133,3]
[325431445,1714881032767,-209.5,0.00020419,3]
[325431446,1714881032776,-150.0,0.00020507,2]
[325431447,1714881032786,-209.5,0.00020706,3]
[325431448,1714881032795,-864.92566081,0.00020912,2]
[325431449,1714881032804,-408.1230692,0.00020959,2]
[325431450,1714881032814,-620.00017235,0.0002097,2]
[325431451,1714881032822,-209.5,0.00020993,3]
[325431452,1714881032832,-2265.77117016,0.00021,2]
[325431453,1714881032842,-236.77113315,0.00021,2]
[325431454,1714881032852,-9304.64279928,0.000211,3]
[325431456,1714881032862,-520.964588,0.000211,2]
[325431458,1714881032871,-520.964588,0.000211,2]
[325431460,1714881032881,-371.542719,0.000212,9]
[325431462,1714881032890,-209.5,0.00021279,3]
[325431464,1714881032899,-209.5,0.00021566,3]
[325431466,1714881032910,-2943.44241115,0.0002168,2]
[325431467,1714881032920,-172.56782,0.0002169,2]
[325431468,1714881032930,-163.69329338,0.00021698,2]
[325431470,1714881032939,-5004.96846216,0.00021816,2]
[325431472,1714881032948,-209.5,0.00021852,3]
[325431473,1714881032957,-524.28787192,0.0002191,2]
[325431475,1714881032967,-154.70605849,0.00021915,2]
[325431477,1714881032976,-280.10929552,0.00021915,2]
[325431479,1714881032985,-180.2324,0.00021915,2]
[325431480,1714881032995,-1349.27201999,0.00021915,2]
[325431482,1714881033004,-183.30638388,0.00021915,2]
[325431484,1714881033013,-1582.67226816,0.00021915,2]
[325431486,1714881033022,-1338.62806329,0.00021915,2]
[325431487,1714881033032,-2803.72093544,0.00021917,2]
[325431489,1714881033042,-810.08,0.00021917,2]
[325431491,1714881033051,-500.0,0.00021917,2]
[325431492,1714881033060,-500.0,0.00021917,2]
[325431493,1714881033070,-500.0,0.00021917,2]
[325431494,1714881033080,-501.22540546,0.00021917,2]
[325431495,1714881033090,-502.17304899,0.00021917,2]
[325431496,1714881033099,-304.20752797,0.00021917,2]
[325431497,1714881033110,-72.69804167,0.00021917,2]
[325432336,1714882238686,-16031.82606066,0.00018565,2]
[325432346,1714882240822,-250.0,0.00018565,2]
[325432362,1714882358460,-6886.0,0.00018565,2]
[325432363,1714882428821,8516.72790458,9.999e-05,2]
[325432364,1714883204461,744.22821418,0.000138,2]
[325432365,1714883238139,-24900.0,0.00018834,2]
[325432366,1714883238158,-222.61258747,0.000189,2]
[325432367,1714883238177,-161.442647,0.00019178,2]
[325432368,1714883238197,-150.0,0.00019766,3]
[325432369,1714883238216,-219.4,0.00019766,3]
[325432370,1714883238236,-169.2983552,0.00019953,2]
[325432371,1714883238254,-387.0513188,0.0001998,2]
[325432372,1714883238273,-1093.96,0.00019999,2]
[325432373,1714883238291,-5000.0,0.0002,2]
[325432374,1714883238310,-5465.83337635,0.0002,2]
[325432375,1714883238330,-532.46413697,0.00020051,2]
[325432376,1714883238351,-1401.86046772,0.00020052,2]
[325432377,1714883238376,-1093.96,0.00020054,2]
[325432378,1714883238398,-150.0,0.0002006,3]
[325432379,1714883238427,-219.4,0.0002006,3]
[325432380,1714883238451,-1093.96,0.00020109,2]
[325432381,1714883238475,-493.0,0.00020121,2]
[325432382,1714883238497,-150.0,0.00020121,2]
[325432383,1714883238519,-1093.96,0.00020164,2]
[325432384,1714883238540,-1093.96,0.00020218,2]
[325432385,1714883238566,-1093.96,0.00020273,2]
[325432386,1714883238589,-1093.96,0.00020328,2]
[325432387,1714883238614,-150.0,0.00020354,3]
[325432388,1714883238636,-219.4,0.00020354,3]
[325432389,1714883238662,-1093.96,0.00020383,2]
[325432390,1714883238685,-1093.96,0.00020438,2]
[325432391,1714883238707,-1093.96,0.00020492,2]
[325432392,1714883238842,-1093.96,0.00020547,2]
[325432393,1714883238873,-169.2983552,0.00020574,2]
[325432394,1714883238894,-1093.96,0.00020602,2]
[325432395,1714883238913,-150.0,0.00020648,3]
[325432396,1714883238932,-219.4,0.00020648,3]
[325432397,1714883238952,-1093.96,0.00020657,2]
[325432398,1714883238971,-1093.96,0.00020712,2]
[325432399,1714883238990,-1093.96,0.00020766,2]
[325432400,1714883239009,-1093.96,0.00020821,2]
[325432401,1714883239033,-1093.96,0.00020876,2]
[325432402,1714883239053,-500.0,0.00020913,2]
[325432403,1714883239073,-500.0,0.00020913,2]